bitfinex-derivatives/quotes_ETHF0:USTF0_20230403
["timestamp","ask_amount","ask_price","bid_price","bid_amount"]
[1680532488245,0.57281939,1807.0,1806.8,1.45030892]
[1680532488535,0.57281939,1807.0,1806.9,0.58012357]
[1680532489440,7.97924789,1807.1,1806.9,0.58012357]
[1680532489642,7.11173611,1807.1,1806.9,0.58012357]
[1680532489842,7.97924789,1807.1,1806.9,0.58012357]
[1680532490640,7.11173611,1807.1,1806.9,0.58012357]
[1680532491142,7.11173611,1807.1,1806.9,1.58012357]
[1680532491143,5.44091672,1807.1,1806.9,1.58012357]
[1680532491446,2.23311672,1807.1,1806.9,2.45030892]
[1680532491642,1.67781939,1807.2,1806.9,1.58012357]
[1680532491840,1.67781939,1807.2,1806.9,2.45030892]
[1680532492043,1.67781939,1807.2,1806.9,1.58012357]
[1680532492238,1.105,1807.2,1807.0,1.45030892]
[1680532492545,1.105,1807.2,1807.0,0.58012357]
[1680532493039,1.105,1807.2,1807.0,1.45030892]
[1680532493245,1.105,1807.2,1807.0,0.58012357]
[1680532493749,1.105,1807.2,1807.0,3.78792357]
[1680532494747,1.105,1807.2,1807.1,1.0]
[1680532496253,1.105,1807.2,1807.0,3.78792357]
[1680532496455,1.105,1807.2,1807.1,1.0]
[1680532497863,1.105,1807.2,1807.0,4.78792357]
[1680532498148,1.105,1807.2,1807.1,1.0]
[1680532498751,1.105,1807.2,1807.0,1.0]
[1680532498952,1.105,1807.2,1807.0,4.78792357]
[1680532499956,1.105,1807.2,1807.0,4.2078]
[1680532500156,1.105,1807.2,1807.0,4.78792357]
[1680532502161,3.35968895,1807.4,1807.0,4.78792357]
[1680532504256,2.78686956,1807.4,1807.0,4.78792357]
[1680532504457,3.78686956,1807.4,1807.0,4.78213754]
[1680532504656,2.78686956,1807.4,1807.0,4.78213754]
[1680532506061,0.30778913,1807.3,1807.0,4.78213754]
[1680532506259,4.78061939,1807.5,1807.1,1.103]
[1680532506260,3.78061939,1807.5,1807.1,1.103]
[1680532506456,3.2078,1807.5,1807.1,1.68312357]
[1680532506761,3.2078,1807.5,1807.2,4.2078]
[1680532507062,3.2078,1807.5,1807.3,1.0]
[1680532507356,0.57281939,1807.6,1807.2,4.2078]
[1680532508061,0.57281939,1807.6,1807.3,1.0]
[1680532508761,0.57281939,1807.6,1807.2,4.2078]
[1680532509063,0.18471213,1807.5,1807.2,4.2078]
[1680532509365,0.18471213,1807.5,1807.3,1.0]
[1680532510554,6.496046,1807.7,1807.4,3.2078]
[1680532512167,6.506046,1807.7,1807.4,3.2078]
[1680532512867,6.506046,1807.7,1807.2,4.3128]
[1680532513962,6.506046,1807.7,1807.1,2.68312357]
[1680532513963,1.095,1807.5,1807.1,2.68312357]
[1680532514166,1.095,1807.5,1807.1,1.68312357]
[1680532515373,4.3028,1807.5,1807.1,1.103]
[1680532515760,1.095,1807.5,1807.1,1.68312357]
[1680532515961,4.3028,1807.5,1807.1,1.103]
[1680532520869,4.3028,1807.5,1807.1,2.103]
[1680532521070,4.3028,1807.5,1807.2,3.2078]
[1680532522166,0.825,1807.3,1807.0,3.78792357]
[1680532522472,0.825,1807.3,1806.9,1.95633756]
[1680532522662,0.825,1807.3,1806.9,7.03432291]
[1680532522863,0.825,1807.3,1806.9,6.03432291]
[1680532523059,0.825,1807.3,1807.0,0.58012357]
[1680532523270,0.825,1807.3,1807.0,1.58012357]
[1680532523471,4.0328,1807.3,1807.0,0.58012357]
[1680532523866,0.12278554,1807.2,1806.9,2.82652291]
[1680532524071,4.0328,1807.3,1806.9,1.95633756]
[1680532524666,0.24638243,1807.2,1806.9,1.95633756]
[1680532524870,1.0,1807.2,1806.9,1.95633756]
[1680532525062,4.0328,1807.3,1806.9,1.95633756]
[1680532525370,0.24637595,1807.2,1806.9,1.95633756]
[1680532525769,4.0328,1807.3,1806.9,1.95633756]
[1680532525971,0.24636901,1807.2,1806.9,1.95633756]
[1680532526373,4.0328,1807.3,1806.9,1.95633756]
[1680532526575,0.24636477,1807.1,1806.9,1.95633756]
[1680532526869,0.824,1807.1,1806.9,1.12933756]
[1680532527074,2.107,1807.2,1806.9,0.54921399]
[1680532527272,2.107,1807.2,1806.8,0.58012357]
[1680532527574,3.2078,1807.1,1806.8,0.58012357]
[1680532527765,3.2078,1807.1,1806.8,1.45030892]
[1680532527969,1.106,1807.0,1806.7,0.58012357]
[1680532528169,3.2078,1806.9,1806.7,0.58012357]
[1680532528462,1.107,1806.8,1806.6,1.45030892]
[1680532528668,4.3108,1806.7,1806.6,0.58012357]
[1680532529067,4.3108,1806.7,1806.5,1.45030892]
[1680532529466,4.3108,1806.7,1806.5,0.58012357]
[1680532529671,4.3108,1806.7,1806.6,0.58012357]
[1680532531170,4.3108,1806.7,1806.5,1.45030892]
[1680532531372,4.3108,1806.7,1806.6,0.58012357]
[1680532532178,3.2078,1806.7,1806.6,0.58012357]
[1680532532777,3.2078,1806.7,1806.5,1.45030892]
[1680532533068,3.2078,1806.7,1806.6,0.58012357]
[1680532533370,3.2078,1806.7,1806.5,1.45030892]
[1680532533567,3.2078,1806.7,1806.6,0.58012357]
[1680532534866,3.2078,1806.7,1806.5,0.87018535]
[1680532534867,3.2078,1806.7,1806.5,1.45030892]
[1680532536671,3.2078,1806.7,1806.5,0.58012357]
[1680532538769,0.58069205,1806.6,1806.5,0.58012357]
[1680532542369,1.58069205,1806.6,1806.4,1.26653306]
[1680532542568,0.58069205,1806.6,1806.4,1.26653306]
[1680532542775,1.103,1806.5,1806.4,1.26653306]
[1680532543977,0.58069205,1806.6,1806.4,1.26653306]
[1680532548184,1.107,1806.5,1806.4,0.68640949]
[1680532548380,1.107,1806.5,1806.4,1.26653306]
[1680532549974,1.107,1806.5,1806.4,0.68640949]
[1680532550280,1.107,1806.5,1806.4,1.26653306]
[1680532552177,1.68669205,1806.6,1806.4,1.26653306]
[1680532553585,1.68669205,1806.6,1806.4,0.68640949]
[1680532556882,2.68669205,1806.6,1806.4,0.68640949]
[1680532557083,1.68669205,1806.6,1806.4,0.68640949]
[1680532558577,3.2078,1806.5,1806.4,0.68640949]
[1680532558883,3.78832895,1806.5,1806.4,0.68640949]
[1680532560784,3.78832895,1806.5,1806.4,1.26653306]
[1680532561283,3.78832895,1806.5,1806.4,0.68640949]
[1680532561485,3.78832895,1806.5,1806.4,1.26653306]
[1680532561678,3.78832895,1806.5,1806.4,0.68640949]
[1680532561881,3.78832895,1806.5,1806.4,1.26653306]
[1680532562385,3.78832895,1806.5,1806.4,0.68640949]
[1680532564687,4.89432895,1806.5,1806.4,0.68640949]
[1680532568786,4.89432895,1806.5,1806.4,1.26653306]
[1680532570887,4.89432895,1806.5,1806.4,1.55096669]
[1680532571187,4.89432895,1806.5,1806.4,2.13087664]
[1680532571490,4.89432895,1806.5,1806.4,1.26069129]
[1680532572988,4.89432895,1806.5,1806.4,1.55096669]
[1680532574194,5.46714834,1806.5,1806.4,1.55096669]
[1680532574393,4.89432895,1806.5,1806.4,1.55096669]
[1680532579491,4.89432895,1806.5,1806.4,2.13112176]
[1680532579693,4.89432895,1806.5,1806.4,2.13112437]
[1680532579694,5.46714834,1806.5,1806.4,2.13112437]
[1680532579893,4.89432895,1806.5,1806.4,1.55096669]
[1680532581297,1.68652895,1806.5,1806.4,1.55096669]
[1680532586207,4.89432895,1806.5,1806.4,1.55096669]
[1680532587111,4.61832895,1806.5,1806.4,1.55096669]
[1680532588507,5.19114834,1806.5,1806.4,1.55096669]
[1680532597821,1.98334834,1806.5,1806.4,0.68078134]
[1680532598119,5.19114834,1806.5,1806.4,0.68078134]
[1680532598720,5.19114834,1806.5,1806.4,1.55157235]
[1680532598923,5.19114834,1806.5,1806.4,0.68078134]
[1680532600826,5.19114834,1806.5,1806.4,1.833914]
[1680532601126,5.19114834,1806.5,1806.4,0.68078134]
[1680532601717,5.48584073,1806.5,1806.4,1.55190216]
[1680532603928,6.31184073,1806.5,1806.4,1.55190216]
[1680532604431,7.31184073,1806.5,1806.4,1.55190216]
[1680532604633,7.31184073,1806.5,1806.4,2.13274629]
[1680532604931,6.44432895,1806.5,1806.4,2.13274353]
[1680532605129,6.44432895,1806.5,1806.2,1.15313266]
[1680532605130,2.958,1806.4,1806.3,0.58088417]
[1680532605436,5.76544439,1806.4,1806.1,0.58088417]
[1680532605630,4.60954253,1806.2,1806.1,0.58088417]
[1680532605826,5.47015632,1806.2,1806.1,0.58088417]
[1680532606931,4.89641379,1806.2,1806.1,0.58088417]
[1680532607232,1.826,1806.1,1806.0,1.45221042]
[1680532607420,2.656,1806.1,1806.0,0.58088417]
[1680532608426,1.656,1806.1,1806.0,0.58088417]
[1680532608833,2.656,1806.1,1806.0,0.58088417]
[1680532609028,1.656,1806.1,1806.0,0.58088417]
[1680532609633,2.656,1806.1,1806.0,0.58088417]
[1680532609833,1.656,1806.1,1805.9,1.45221042]
[1680532610128,4.0378,1806.0,1805.9,0.58088417]
[1680532611227,4.0378,1806.0,1805.8,0.58088417]
[1680532611631,0.83,1805.9,1805.8,0.58088417]
[1680532611826,1.66,1805.9,1805.8,0.58088417]
[1680532612030,1.66,1805.9,1805.6,1.45221042]
[1680532612031,2.66,1805.9,1805.6,1.45221042]
[1680532612224,4.0378,1805.7,1805.6,1.45221042]
[1680532612934,4.0378,1805.7,1805.6,0.58088417]
[1680532613336,4.0378,1805.7,1805.5,0.58088417]
[1680532613924,1.04665293,1805.6,1805.5,0.58088417]
[1680532614328,1.0,1805.5,1805.3,1.44817439]
[1680532614634,4.8628,1805.4,1805.3,0.57926976]
[1680532614932,4.8628,1805.4,1805.2,1.44817439]
[1680532615128,0.83,1805.3,1805.2,1.44817439]
[1680532615333,1.83,1805.3,1805.2,0.57926976]
[1680532615534,1.83,1805.3,1805.2,1.0]
[1680532615535,0.83,1805.3,1805.2,1.0]
[1680532615832,0.829,1805.4,1805.2,1.57926976]
[1680532616039,4.0368,1805.4,1805.2,1.57926976]
[1680532616832,4.0368,1805.4,1805.2,0.57926976]
[1680532617136,4.0368,1805.4,1805.1,1.12064919]
[1680532617336,4.0368,1805.4,1805.1,0.54137943]
[1680532617540,4.0368,1805.4,1805.1,1.0]
[1680532617737,4.0368,1805.4,1805.1,1.57926976]
[1680532617939,4.0368,1805.4,1805.1,1.0]
[1680532618240,4.0368,1805.4,1805.1,1.57926976]
[1680532618734,4.0368,1805.4,1805.1,1.0]
[1680532619238,4.0368,1805.4,1805.1,1.57926976]
[1680532619640,4.58743367,1805.4,1805.1,1.0]
[1680532622130,0.55063367,1805.4,1805.1,1.0]
[1680532622440,1.101,1805.5,1805.1,1.0]
[1680532622641,3.2078,1805.4,1805.1,1.54881692]
[1680532623343,1.101,1805.5,1805.1,0.54881692]
[1680532623541,1.101,1805.5,1805.0,5.99506976]
[1680532623840,1.101,1805.5,1805.1,1.0]
[1680532625441,3.2078,1805.4,1805.1,1.0]
[1680532625640,3.2078,1805.4,1805.0,5.99506976]
[1680532626939,1.101,1805.5,1805.0,5.99506976]
[1680532627140,3.2078,1805.4,1805.0,5.99506976]
[1680532627939,4.3158,1805.4,1805.0,4.88706976]
[1680532628242,4.3158,1805.4,1805.0,4.3078]
[1680532628445,4.3158,1805.4,1805.0,3.3078]
[1680532628944,1.43532135,1805.3,1805.0,3.3078]
[1680532629339,4.3158,1805.4,1805.0,3.3078]
[1680532629947,4.3158,1805.4,1805.0,0.1]
[1680532632145,1.108,1805.2,1805.0,0.1]
[1680532637252,1.108,1805.1,1805.0,0.1]
[1680532637849,1.0,1805.0,1804.6,0.54078303]
[1680532638149,1.0,1805.0,1804.5,3.78706976]
[1680532638150,1.108,1804.7,1804.5,3.78706976]
[1680532638351,1.108,1804.7,1804.5,3.2078]
[1680532638747,1.101,1804.6,1804.2,0.57926976]
[1680532638949,1.101,1804.6,1804.1,1.41475266]
[1680532638950,4.3088,1804.3,1804.1,1.0]
[1680532639166,4.3088,1804.3,1804.0,0.15]
[1680532639167,2.206,1804.2,1804.0,0.15]
[1680532639354,5.533,1804.0,1803.6,1.44817439]
[1680532639548,3.2078,1803.8,1803.5,0.57926976]
[1680532639859,3.2078,1803.8,1803.3,1.15394063]
[1680532639860,1.108,1803.7,1803.3,4.33663596]
[1680532640156,1.101,1804.0,1803.5,3.78706976]
[1680532640458,1.108,1804.1,1803.6,1.0]
[1680532640648,4.3158,1804.1,1803.6,1.0]
[1680532640847,4.3158,1804.1,1803.4,3.2078]
[1680532641054,4.3158,1804.3,1803.8,1.108]
[1680532641254,4.3158,1804.3,1803.8,4.3158]
[1680532641459,1.108,1804.1,1803.7,1.0]
[1680532642054,2.7594375,1804.2,1803.7,2.108]
[1680532642954,2.7594375,1804.2,1803.8,3.2078]
[1680532643165,2.7594375,1804.2,1803.9,1.0]
[1680532643459,2.7594375,1804.2,1803.7,2.108]
[1680532644254,2.7594375,1804.2,1803.9,1.0]
[1680532644662,2.7594375,1804.2,1803.8,3.2078]
[1680532644857,2.7594375,1804.2,1803.7,1.108]
[1680532645361,1.108,1804.0,1803.5,2.108]
[1680532645562,1.108,1804.0,1803.5,1.108]
[1680532645758,4.44460147,1803.9,1803.5,1.108]
[1680532646063,3.2078,1803.9,1803.5,1.108]
[1680532646267,1.108,1803.8,1803.4,3.2078]
[1680532646456,1.108,1803.8,1803.5,1.0]
[1680532646664,1.108,1803.8,1803.4,3.2078]
[1680532646863,1.108,1803.8,1803.5,1.0]
[1680532647058,1.108,1803.8,1803.4,3.2078]
[1680532647263,1.108,1803.6,1803.3,0.5495662]
[1680532647459,1.108,1803.6,1803.2,4.2078]
[1680532647661,1.108,1803.6,1803.3,41.8]
[1680532647863,1.108,1803.6,1803.4,3.2078]
[1680532648065,1.108,1803.6,1803.4,4.2078]
[1680532648265,1.108,1803.6,1803.4,1.0]
[1680532648465,1.108,1803.6,1803.4,4.2078]
[1680532648660,3.2078,1803.8,1803.4,4.2078]
[1680532648854,1.45320567,1803.5,1803.4,3.2078]
[1680532649061,1.45320567,1803.5,1803.4,1.0]
[1680532649267,1.108,1803.9,1803.3,41.898]
[1680532649459,3.2078,1803.8,1803.4,1.0]
[1680532649658,4.47950781,1803.8,1803.3,41.898]
[1680532650062,4.47950781,1803.8,1803.4,1.0]
[1680532650360,4.47950781,1803.8,1803.3,41.898]
[1680532651157,3.2078,1803.6,1803.3,40.8]
[1680532651961,1.108,1803.4,1803.3,40.8]
[1680532652166,1.101,1803.7,1803.3,44.0078]
[1680532652458,1.108,1803.5,1803.2,0.5648615]
[1680532652665,4.3158,1803.5,1803.1,3.2078]
[1680532653261,4.3158,1803.5,1803.1,4.2078]
[1680532653466,4.3158,1803.7,1803.1,5.86210904]
[1680532653665,1.108,1803.7,1803.2,1.0]
[1680532653859,4.3158,1803.7,1803.2,1.0]
[1680532655080,1.36533381,1803.6,1803.2,1.0]
[1680532655880,1.36533381,1803.6,1803.1,5.86210904]
[1680532656079,1.36533381,1803.6,1803.2,1.0]
[1680532656987,1.36533381,1803.6,1803.1,5.86210904]
[1680532657175,1.101,1803.4,1803.1,3.75410904]
[1680532658088,1.101,1803.4,1803.1,4.75410904]
[1680532658289,1.101,1803.4,1803.1,3.75410904]
[1680532658886,1.45899572,1803.3,1803.1,4.75410904]
[1680532659191,1.101,1803.4,1803.1,4.75410904]
[1680532659388,1.45899405,1803.2,1803.1,4.75410904]
[1680532659685,1.101,1803.4,1803.1,3.75410904]
[1680532660091,1.45899226,1803.2,1803.1,3.75410904]
[1680532660289,1.108,1803.2,1803.1,3.75410904]
[1680532660493,1.108,1803.2,1803.1,0.54630904]
[1680532660784,1.108,1803.2,1803.0,0.1]
[1680532661490,1.108,1803.2,1803.0,0.66777389]
[1680532661682,1.108,1803.2,1803.0,0.1]
[1680532664192,3.2078,1803.1,1803.0,0.1]
[1680532664393,1.108,1803.2,1803.0,0.66429]
[1680532664591,1.108,1803.1,1803.0,0.1]
[1680532664796,4.3158,1803.1,1803.0,0.1]
[1680532667297,2.212,1803.0,1802.3,0.54069955]
[1680532667596,2.212,1803.0,1802.1,3.75906332]
[1680532667597,1.108,1802.4,1802.1,3.2078]
[1680532667795,1.108,1802.5,1802.2,1.0]
[1680532668189,1.108,1802.5,1802.1,4.87734819]
[1680532668388,1.108,1802.3,1802.1,1.66954819]
[1680532668594,1.101,1802.2,1802.0,0.70253009]
[1680532668791,1.108,1802.3,1802.0,0.15]
[1680532668991,1.108,1802.3,1802.1,3.2078]
[1680532669192,1.108,1802.3,1802.0,1.15]
[1680532669395,1.101,1802.2,1802.0,0.15]
[1680532669892,1.101,1802.2,1802.0,1.15]
[1680532670095,1.108,1802.3,1802.1,3.2078]
[1680532670392,1.108,1802.3,1802.2,1.0]
[1680532670595,1.108,1802.3,1802.1,3.2078]
[1680532670596,1.108,1802.3,1802.0,4.92589188]
[1680532670791,1.108,1802.3,1802.0,0.71809188]
[1680532670990,1.108,1802.3,1802.1,1.0]
[1680532671395,1.108,1802.2,1802.0,0.71809188]
[1680532671788,2.24061601,1802.1,1802.0,0.71809188]
[1680532672088,2.24061601,1802.1,1802.0,1.71809188]
[1680532672290,3.34861601,1802.1,1802.0,0.71809188]
[1680532672497,2.24061601,1802.1,1802.0,0.71809188]
[1680532672693,1.108,1802.3,1802.0,0.71809188]
[1680532672998,1.108,1802.2,1802.0,0.71809188]
[1680532673498,1.108,1802.2,1802.0,4.92589188]
[1680532673793,1.108,1802.2,1802.0,0.71809188]
[1680532674000,2.24061306,1802.1,1802.0,0.71809188]
[1680532674598,2.24061306,1802.1,1802.0,0.15]
[1680532675595,2.24061306,1802.1,1802.0,3.3578]
[1680532675800,1.1,1802.4,1802.0,0.15]
[1680532676290,1.1,1802.4,1802.0,3.3578]
[1680532676488,1.101,1802.1,1802.0,0.15]
[1680532676692,1.101,1802.1,1801.2,16.9328]
[1680532676693,2.216,1802.1,1801.2,16.9328]
[1680532676894,2.216,1802.1,1801.0,0.1]
[1680532676895,1.108,1801.2,1801.0,0.1]
[1680532677094,1.101,1801.1,1801.0,0.1]
[1680532677603,1.101,1801.1,1800.7,3.2078]
[1680532677604,1.0,1801.0,1800.7,3.2078]
[1680532677901,1.108,1800.8,1800.6,1.0]
[1680532678201,1.1,1801.0,1800.5,4.3158]
[1680532678399,4.986,1801.6,1800.3,1.0]
[1680532678400,4.906,1802.3,1801.1,0.47797799]
[1680532678601,4.906,1802.6,1802.0,3.2078]
[1680532678897,8.44679826,1802.7,1802.0,4.3158]
[1680532679105,8.44679826,1802.7,1802.2,3.2078]
[1680532679106,1.101,1802.7,1802.2,3.2078]
[1680532679404,1.108,1802.5,1802.2,3.2078]
[1680532679793,1.101,1802.3,1801.8,4.3158]
[1680532679993,1.101,1802.3,1802.0,3.2078]
[1680532681795,1.108,1802.1,1802.0,3.2078]
[1680532682204,3.219,1802.2,1802.0,3.2078]
[1680532682393,1.0,1802.1,1802.0,3.2078]
[1680532682593,1.0,1802.1,1801.4,3.2078]
[1680532682594,3.201,1802.1,1801.4,3.2078]
[1680532682800,2.201,1801.5,1801.4,3.2078]
[1680532683606,2.201,1801.5,1801.2,3.2078]
[1680532684307,4.2078,1801.7,1801.2,3.2078]
[1680532684308,2.211,1801.3,1801.2,3.2078]
[1680532685401,2.201,1801.4,1801.2,3.2078]
[1680532685606,2.201,1801.3,1801.1,0.47797799]
[1680532685807,1.0,1801.2,1801.1,0.47797799]
[1680532686497,2.219,1801.2,1801.1,0.47797799]
[1680532686900,2.219,1801.2,1800.7,3.2078]
[1680532686901,1.0,1801.1,1800.7,3.2078]
[1680532687101,2.219,1800.8,1800.5,1.0]
[1680532687299,2.219,1800.8,1800.4,3.78706976]
[1680532687500,2.219,1800.8,1800.4,3.2078]
[1680532687904,2.201,1800.6,1800.2,3.2078]
[1680532688904,2.72860246,1800.5,1800.2,3.2078]
[1680532689110,2.215,1800.3,1800.0,3.3578]
[1680532689914,4.94760246,1800.5,1800.0,3.3578]
[1680532690207,4.94760246,1800.5,1800.2,3.2078]
[1680532690412,2.215,1800.3,1800.0,3.3578]
[1680532691003,2.215,1800.3,1800.0,0.15]
[1680532692003,2.211,1800.2,1800.0,0.15]
[1680532692205,2.219,1800.3,1800.0,3.3578]
[1680532693003,2.219,1800.2,1800.0,3.3578]
[1680532693510,1.0,1800.0,1799.6,3.2078]
[1680532693708,2.219,1800.1,1799.6,3.2078]
[1680532694812,2.219,1800.1,1799.6,5.4268]
[1680532695011,2.219,1800.1,1799.8,3.2078]
[1680532696414,2.219,1800.0,1799.8,3.2078]
[1680532697117,2.219,1800.4,1799.8,5.4268]
[1680532697409,2.219,1800.2,1799.9,3.2078]
[1680532697910,2.219,1800.3,1799.9,3.2078]
[1680532698300,1.0,1800.4,1799.9,3.2078]
[1680532698301,2.201,1800.2,1799.9,3.2078]
[1680532699009,2.72860246,1800.5,1800.1,3.2078]
[1680532699221,3.2078,1801.5,1800.4,2.219]
[1680532699410,3.2078,1801.5,1800.3,5.4268]
[1680532699411,1.04186832,1801.4,1800.9,3.2078]
[1680532699617,2.215,1801.2,1800.7,3.2078]
[1680532699912,2.201,1801.0,1800.6,3.2078]
[1680532700111,2.201,1801.0,1800.8,3.2078]
[1680532701012,2.201,1801.1,1800.8,3.2078]
[1680532701412,2.201,1801.1,1801.0,3.2078]
[1680532702506,4.417,1801.1,1800.4,3.2078]
[1680532702705,2.219,1800.6,1800.4,3.2078]
[1680532702917,2.201,1800.7,1800.4,3.2078]
[1680532703113,2.201,1800.7,1800.6,3.2078]
[1680532705110,2.219,1801.1,1800.6,8.7408]
[1680532705314,2.219,1801.1,1800.9,3.2078]
[1680532705609,4.07426342,1801.0,1800.5,3.2078]
[1680532705912,2.215,1800.8,1800.5,3.2078]
[1680532706320,2.219,1800.6,1800.2,3.2078]
[1680532706909,2.201,1800.4,1800.2,3.2078]
[1680532707310,1.1060774,1800.3,1800.2,3.2078]
[1680532709624,1.5,1800.2,1800.0,0.002]
[1680532709913,4.3250774,1800.3,1800.0,0.002]
[1680532709914,2.219,1800.1,1800.0,0.002]
[1680532710312,3.219,1800.2,1800.0,3.2098]
[1680532710512,2.219,1800.2,1800.0,3.2098]
[1680532710913,1.1060774,1800.3,1800.0,3.2098]
[1680532711311,2.219,1800.1,1800.0,0.002]
[1680532712218,3.219,1800.3,1800.0,0.002]
[1680532712822,2.219,1800.3,1800.1,3.2078]
[1680532713119,3.219,1800.2,1800.0,0.002]
[1680532713325,2.211,1800.1,1800.0,0.002]
[1680532713823,1.0,1800.2,1800.0,0.002]
[1680532713824,3.2078,1801.4,1800.2,5.533]
[1680532714027,3.2078,1801.2,1800.7,3.2078]
[1680532714210,3.2078,1801.4,1800.7,3.2078]
[1680532714417,2.219,1801.0,1800.7,3.2078]
[1680532714615,2.219,1801.0,1800.5,1.0]
[1680532714616,2.219,1801.0,1800.9,3.2078]
[1680532715014,2.219,1801.0,1800.4,3.2078]
[1680532715326,2.219,1800.6,1800.4,3.2078]
[1680532716519,2.219,1800.6,1800.4,8.7408]
[1680532716720,2.219,1801.1,1800.5,2.214]
[1680532716919,1.0,1801.3,1800.4,3.2078]
[1680532716920,3.2078,1801.2,1800.4,3.2078]
[1680532717120,3.2078,1801.0,1800.2,0.47817242]
[1680532717326,2.211,1800.3,1800.2,0.00017242]
[1680532717522,1.0,1800.2,1800.0,0.002]
[1680532717823,3.2078,1800.8,1800.1,3.2078]
[1680532718023,3.2078,1800.8,1800.0,3.2098]
[1680532718524,2.211,1800.1,1799.4,3.78374309]
[1680532718713,3.2078,1800.2,1799.2,0.86890463]
[1680532718714,2.201,1799.5,1799.3,0.57594309]
[1680532718913,2.219,1799.4,1799.2,3.78374309]
[1680532719121,2.219,1799.8,1799.3,0.57594309]
[1680532719424,1.67071418,1800.0,1799.7,3.2078]
[1680532720024,1.67071418,1800.0,1799.5,0.57594309]
[1680532720025,1.0,1800.2,1799.6,3.2078]
[1680532720324,2.219,1799.7,1799.4,3.78374309]
[1680532720628,2.201,1799.5,1799.4,3.2078]
[1680532721020,2.219,1799.6,1799.4,3.2078]
[1680532721428,1.0,1799.5,1799.4,3.2078]
[1680532721820,2.219,1799.6,1799.4,3.2078]
[1680532722223,1.5468661,1800.2,1799.4,3.2078]
[1680532722224,2.211,1799.8,1799.4,3.2078]
[1680532722429,2.219,1800.0,1799.6,3.2078]
[1680532722726,2.219,1800.0,1799.6,3.78374309]
[1680532722928,2.211,1799.7,1799.6,3.78374309]
[1680532723124,2.211,1799.7,1799.5,0.57594309]
[1680532724033,7.78619648,1800.9,1799.5,0.57594309]
[1680532724034,3.2078,1800.7,1799.6,5.4268]
[1680532724228,3.2078,1800.7,1799.5,3.6621163]
[1680532724229,3.2078,1800.7,1800.3,3.2078]
[1680532724830,1.0,1800.5,1800.3,3.2078]
[1680532725032,3.2078,1800.9,1800.3,3.2078]
[1680532725335,5.4088,1800.9,1800.4,3.2078]
[1680532725539,2.201,1800.9,1800.4,3.2078]
[1680532725738,6.4268,1801.1,1800.7,3.2078]
[1680532726229,6.4268,1801.1,1800.5,5.4118]
[1680532726428,5.4268,1801.1,1800.7,3.2078]
[1680532727237,3.2078,1801.1,1800.7,3.2078]
[1680532728943,7.6248,1801.1,1800.7,3.2078]
[1680532729241,4.442,1800.8,1800.3,0.57782207]
[1680532729447,10.975,1801.2,1800.1,3.78562207]
[1680532729448,7.6298,1800.7,1800.1,3.78562207]
[1680532729742,3.2078,1800.5,1800.1,3.78562207]
[1680532729943,3.2078,1800.3,1800.0,0.57782207]
[1680532730540,1.0,1800.4,1800.0,0.57782207]
[1680532730751,3.2078,1800.5,1800.1,0.57782207]
[1680532731746,3.2078,1800.6,1800.1,0.57782207]
[1680532731946,1.0,1800.5,1800.1,0.57782207]
[1680532732242,4.2078,1800.6,1800.1,0.57782207]
[1680532732444,3.2078,1800.6,1800.1,0.57782207]
[1680532732845,1.0,1800.8,1800.1,0.57782207]
[1680532732846,8.18058259,1800.8,1800.3,3.78562207]
[1680532733243,7.6248,1800.8,1800.3,3.78562207]
[1680532733545,7.6498,1800.6,1800.2,0.57782207]
[1680532733746,7.6498,1800.6,1800.1,0.57782207]
[1680532733747,1.25280731,1800.5,1800.1,0.57782207]
[1680532733936,1.25280731,1800.5,1800.0,1.44455518]
[1680532734139,1.25280731,1800.5,1800.1,0.57782207]
[1680532734340,1.0,1800.4,1800.1,0.57782207]
[1680532734554,2.25280731,1800.5,1800.1,0.57782207]
[1680532735435,3.2078,1800.4,1800.1,0.57782207]
[1680532736254,1.0,1800.3,1800.1,0.57782207]
[1680532736649,3.2078,1800.4,1800.1,0.57782207]
[1680532736947,1.0,1800.3,1800.1,0.57782207]
[1680532737148,3.2078,1800.2,1799.9,1.44455518]
[1680532737342,3.2078,1800.2,1799.9,0.57782207]
[1680532737538,3.2078,1800.2,1799.8,0.57782207]
[1680532738045,5.417,1800.1,1799.8,0.57782207]
[1680532738240,4.2078,1800.0,1799.7,1.53441909]
[1680532738551,3.2078,1799.8,1799.7,0.95659702]
[1680532738942,4.2078,1799.8,1799.7,0.95659702]
[1680532739951,4.2078,1799.8,1799.7,0.00059702]
[1680532741448,1.0,1799.7,1799.0,0.67782207]
[1680532741753,3.2078,1799.1,1799.0,0.67782207]
[1680532741940,7.6298,1799.6,1799.0,0.96673311]
[1680532742146,1.0,1799.5,1799.1,0.57927281]
[1680532742343,3.2078,1799.4,1799.0,1.54600592]
[1680532742549,3.2078,1799.4,1799.1,0.57927281]
[1680532742842,1.0,1799.3,1799.1,0.57927281]
[1680532743352,4.2078,1799.3,1799.1,0.57927281]
[1680532743544,1.0,1799.3,1799.1,0.57927281]
[1680532743750,1.0,1799.3,1799.0,1.54600592]
[1680532743943,1.0,1799.3,1799.0,0.67927281]
[1680532744156,4.2078,1799.3,1799.0,0.67927281]
[1680532744342,1.0,1799.3,1799.0,0.67927281]
[1680532744547,4.2078,1799.3,1799.0,0.1]
[1680532745041,3.2078,1799.1,1799.0,0.1]
[1680532746258,3.2078,1799.1,1798.7,0.57927281]
[1680532746552,10.975,1799.3,1798.3,3.2078]